[Event "*** SCC Grand Prix: Titled Tuesday Blitz"]
[Site "Chess.com"]
[Date "2020.09.29"]
[Round "9"]
[White "rynos0411"]
[Black "checkmatequen"]
[Result "1-0"]
[WhiteElo "2430"]
[BlackElo "2309"]
[TimeControl "180+1"]
[EndTime "11:45:11 PDT"]
[Termination "rynos0411 won on time"]

1. e4 {[%clk 0:03:00.9]} 1... c5 {[%clk 0:02:50]} 2. Nf3 {[%clk 0:03:00]} 2...
e6 {[%clk 0:02:45.7]} 3. d3 {[%clk 0:02:57.8]} 3... Nc6 {[%clk 0:02:42.6]} 4.
Nbd2 {[%clk 0:02:58.7]} 4... Nf6 {[%clk 0:02:42.5]} 5. g3 {[%clk 0:02:59.6]}
5... g6 {[%clk 0:02:42.5]} 6. Bg2 {[%clk 0:03:00.1]} 6... Bg7 {[%clk 0:02:43.1]}
7. O-O {[%clk 0:03:00.9]} 7... d6 {[%clk 0:02:43.6]} 8. c3 {[%clk 0:03:01.5]}
8... O-O {[%clk 0:02:44.2]} 9. Qc2 {[%clk 0:03:02.1]} 9... b5 {[%clk 0:02:44.4]}
10. Rd1 {[%clk 0:03:01.1]} 10... Bb7 {[%clk 0:02:41.7]} 11. Nf1 {[%clk
0:03:00.8]} 11... a5 {[%clk 0:02:41.5]} 12. h4 {[%clk 0:02:58.9]} 12... b4
{[%clk 0:02:41.6]} 13. Be3 {[%clk 0:02:56.7]} 13... Qc7 {[%clk 0:02:39.5]} 14.
N1h2 {[%clk 0:02:51.9]} 14... Ne5 {[%clk 0:02:39.5]} 15. a3 {[%clk 0:02:36.7]}
15... Nfg4 {[%clk 0:02:24.5]} 16. Bf4 {[%clk 0:02:19.5]} 16... Nxh2 {[%clk
0:02:18.6]} 17. Nxh2 {[%clk 0:02:18.3]} 17... bxc3 {[%clk 0:02:17.8]} 18. bxc3
{[%clk 0:02:16.8]} 18... a4 {[%clk 0:02:17.3]} 19. Rab1 {[%clk 0:02:13.5]} 19...
c4 {[%clk 0:02:16.1]} 20. d4 {[%clk 0:02:09.9]} 20... Nd3 {[%clk 0:02:15.1]} 21.
Bxd6 {[%clk 0:02:09.3]} 21... Qxd6 {[%clk 0:02:11.3]} 22. Rxb7 {[%clk
0:02:08.7]} 22... e5 {[%clk 0:02:06.8]} 23. dxe5 {[%clk 0:02:03.7]} 23... Qxe5
{[%clk 0:02:03]} 24. Bf1 {[%clk 0:02:02.7]} 24... Qxe4 {[%clk 0:01:58]} 25. Rd7
{[%clk 0:01:52.6]} 25... Nc5 {[%clk 0:01:27.9]} 26. Qxe4 {[%clk 0:01:31.3]}
26... Nxe4 {[%clk 0:01:28.8]} 27. Rc7 {[%clk 0:01:31.4]} 27... Nxc3 {[%clk
0:01:26.9]} 28. Rc1 {[%clk 0:01:31.8]} 28... Nb5 {[%clk 0:01:16.6]} 29. R7xc4
{[%clk 0:01:29.2]} 29... Nxa3 {[%clk 0:01:17]} 30. Rb4 {[%clk 0:01:23.4]} 30...
Rfb8 {[%clk 0:01:11.1]} 31. Rxb8+ {[%clk 0:01:03.5]} 31... Rxb8 {[%clk 0:01:12]}
32. Ng4 {[%clk 0:01:03]} 32... Nb5 {[%clk 0:01:07.1]} 33. Rb1 {[%clk 0:00:43.6]}
33... f5 {[%clk 0:00:45.7]} 34. Bc4+ {[%clk 0:00:33.8]} 34... Kf8 {[%clk
0:00:42.5]} 35. Ne3 {[%clk 0:00:34]} 35... a3 {[%clk 0:00:40.9]} 36. Nc2 {[%clk
0:00:30.2]} 36... a2 {[%clk 0:00:35.6]} 37. Bxa2 {[%clk 0:00:24.6]} 37... Rc8
{[%clk 0:00:25.7]} 38. Rxb5 {[%clk 0:00:21.2]} 38... Rxc2 {[%clk 0:00:25.6]} 39.
Rb8+ {[%clk 0:00:20.5]} 39... Ke7 {[%clk 0:00:25.9]} 40. Rb7+ {[%clk 0:00:20.8]}
40... Kd6 {[%clk 0:00:16.2]} 41. Rxg7 {[%clk 0:00:19.3]} 41... Rxa2 {[%clk
0:00:16.6]} 42. Rxh7 {[%clk 0:00:19.7]} 42... Ke6 {[%clk 0:00:16.5]} 43. Rh6
{[%clk 0:00:18.9]} 43... Kf6 {[%clk 0:00:16.7]} 44. h5 {[%clk 0:00:19]} 44...
Kg5 {[%clk 0:00:14.9]} 45. Rxg6+ {[%clk 0:00:17]} 45... Kxh5 {[%clk 0:00:15.3]}
46. Rg8 {[%clk 0:00:17.5]} 46... Ra5 {[%clk 0:00:11.3]} 47. Kg2 {[%clk
0:00:17.7]} 47... Ra4 {[%clk 0:00:09.9]} 48. Kf3 {[%clk 0:00:17.8]} 48... Rb4
{[%clk 0:00:09.4]} 49. Kg2 {[%clk 0:00:13.1]} 49... Ra4 {[%clk 0:00:09.3]} 50.
f3 {[%clk 0:00:13.2]} 50... Rb4 {[%clk 0:00:08.6]} 51. Kh3 {[%clk 0:00:13.4]}
51... Ra4 {[%clk 0:00:07.7]} 52. g4+ {[%clk 0:00:11.9]} 52... fxg4+ {[%clk
0:00:07.5]} 53. fxg4+ {[%clk 0:00:12.2]} 53... Kh6 {[%clk 0:00:07.3]} 54. Kh4
{[%clk 0:00:12.7]} 54... Rb4 {[%clk 0:00:06.3]} 55. Rc8 {[%clk 0:00:12.5]} 55...
Rb6 {[%clk 0:00:05.1]} 56. Rc5 {[%clk 0:00:07.2]} 56... Kg6 {[%clk 0:00:05.2]}
57. Kg3 {[%clk 0:00:06.8]} 57... Rb3+ {[%clk 0:00:04.5]} 58. Kh4 {[%clk
0:00:07.1]} 58... Rb6 {[%clk 0:00:04.3]} 59. Rf5 {[%clk 0:00:07]} 59... Ra6
{[%clk 0:00:03.8]} 60. Rg5+ {[%clk 0:00:07.2]} 60... Kh6 {[%clk 0:00:03.6]} 61.
Rg8 {[%clk 0:00:06.8]} 61... Ra4 {[%clk 0:00:03.5]} 62. Rh8+ {[%clk 0:00:06.2]}
62... Kg6 {[%clk 0:00:03]} 63. Rg8+ {[%clk 0:00:05.7]} 63... Kh6 {[%clk
0:00:02.5]} 64. Re8 {[%clk 0:00:06]} 1-0

[Event "*** SCC Grand Prix: Titled Tuesday Blitz"]
[Site "Chess.com"]
[Date "2020.09.29"]
[Round "9"]
[White "Playgood28"]
[Black "Roza_Idrisova"]
[Result "1/2-1/2"]
[WhiteElo "2317"]
[BlackElo "2149"]
[TimeControl "180+1"]
[EndTime "11:45:11 PDT"]
[Termination "Game drawn by repetition"]

1. d4 {[%clk 0:03:00.9]} 1... d5 {[%clk 0:02:56.9]} 2. c4 {[%clk 0:03:00.7]}
2... c6 {[%clk 0:02:56.8]} 3. Nd2 {[%clk 0:02:59.9]} 3... Nf6 {[%clk 0:02:56.6]}
4. Ngf3 {[%clk 0:02:59.7]} 4... a6 {[%clk 0:02:56.2]} 5. e3 {[%clk 0:02:56.1]}
5... b5 {[%clk 0:02:56.2]} 6. cxd5 {[%clk 0:02:52.1]} 6... cxd5 {[%clk
0:02:55.9]} 7. Bd3 {[%clk 0:02:49.9]} 7... Bg4 {[%clk 0:02:55.4]} 8. O-O {[%clk
0:02:47.3]} 8... e6 {[%clk 0:02:55.1]} 9. h3 {[%clk 0:02:47.3]} 9... Bh5 {[%clk
0:02:54.3]} 10. b3 {[%clk 0:02:46.6]} 10... Nbd7 {[%clk 0:02:54]} 11. Bb2 {[%clk
0:02:45.8]} 11... Bd6 {[%clk 0:02:53.4]} 12. Rc1 {[%clk 0:02:41]} 12... O-O
{[%clk 0:02:52.9]} 13. Qc2 {[%clk 0:02:39]} 13... Qa5 {[%clk 0:02:43.1]} 14. Bc3
{[%clk 0:02:06.3]} 14... Qb6 {[%clk 0:02:36.9]} 15. Ne5 {[%clk 0:01:45.3]} 15...
Qb7 {[%clk 0:02:18.5]} 16. Nxd7 {[%clk 0:01:32.6]} 16... Qxd7 {[%clk 0:02:17.5]}
17. Bb2 {[%clk 0:01:29.3]} 17... Rfc8 {[%clk 0:02:15.3]} 18. Qb1 {[%clk
0:01:29]} 18... Bg6 {[%clk 0:02:12.4]} 19. Bxg6 {[%clk 0:01:24]} 19... hxg6
{[%clk 0:02:12]} 20. Rxc8+ {[%clk 0:01:22.6]} 20... Rxc8 {[%clk 0:02:11.3]} 21.
Rc1 {[%clk 0:01:22.5]} 21... Bb4 {[%clk 0:02:11]} 22. Nf3 {[%clk 0:01:14.8]}
22... Ne4 {[%clk 0:02:03.7]} 23. Ne5 {[%clk 0:01:03.3]} 23... Qb7 {[%clk
0:02:02.8]} 24. f3 {[%clk 0:00:55.7]} 24... Ng3 {[%clk 0:01:59.5]} 25. Kh2
{[%clk 0:00:52.9]} 25... Nf5 {[%clk 0:01:52.8]} 26. Rxc8+ {[%clk 0:00:48.2]}
26... Qxc8 {[%clk 0:01:52.2]} 27. Qd3 {[%clk 0:00:47.8]} 27... Bd6 {[%clk
0:01:50]} 28. Kg1 {[%clk 0:00:44.2]} 28... Bxe5 {[%clk 0:01:41.3]} 29. dxe5
{[%clk 0:00:43.4]} 29... Qc6 {[%clk 0:01:36.1]} 30. g4 {[%clk 0:00:38.2]} 30...
Ne7 {[%clk 0:01:31.4]} 31. Qc3 {[%clk 0:00:35]} 31... Qxc3 {[%clk 0:01:30.3]}
32. Bxc3 {[%clk 0:00:35.1]} 32... Nc6 {[%clk 0:01:30.1]} 33. Kf2 {[%clk
0:00:33.7]} 33... g5 {[%clk 0:01:25.7]} 34. Kg3 {[%clk 0:00:29]} 34... Kh7
{[%clk 0:01:15]} 35. h4 {[%clk 0:00:27]} 35... gxh4+ {[%clk 0:01:11]} 36. Kxh4
{[%clk 0:00:26.6]} 36... Kg6 {[%clk 0:01:04.2]} 37. f4 {[%clk 0:00:25.6]} 37...
Kh6 {[%clk 0:00:49]} 38. Kg3 {[%clk 0:00:23.5]} 38... g6 {[%clk 0:00:38.9]} 39.
Kf3 {[%clk 0:00:22.4]} 39... Kg7 {[%clk 0:00:29.8]} 40. Ke2 {[%clk 0:00:21.7]}
40... Kf8 {[%clk 0:00:29]} 41. Kd3 {[%clk 0:00:20.4]} 41... Ke8 {[%clk
0:00:28.4]} 42. Ke2 {[%clk 0:00:18.5]} 42... Kd7 {[%clk 0:00:28.1]} 43. Kd3
{[%clk 0:00:18]} 43... Ke8 {[%clk 0:00:24]} 44. Ke2 {[%clk 0:00:17.9]} 44... Kd7
{[%clk 0:00:21]} 45. Kd3 {[%clk 0:00:18.3]} 45... b4 {[%clk 0:00:19.4]} 46. Bd2
{[%clk 0:00:15.9]} 46... a5 {[%clk 0:00:19.4]} 47. Bc1 {[%clk 0:00:15.3]} 47...
Kc7 {[%clk 0:00:19.6]} 48. Bb2 {[%clk 0:00:14.8]} 48... Kb6 {[%clk 0:00:19.7]}
49. e4 {[%clk 0:00:13.1]} 49... dxe4+ {[%clk 0:00:18.3]} 50. Kxe4 {[%clk
0:00:12.9]} 50... Ne7 {[%clk 0:00:17.1]} 51. Kd4 {[%clk 0:00:08.7]} 51... Kb5
{[%clk 0:00:15.6]} 52. Bc1 {[%clk 0:00:06.2]} 52... Nd5 {[%clk 0:00:15.3]} 53.
Bd2 {[%clk 0:00:05.5]} 53... a4 {[%clk 0:00:14.1]} 54. Ke4 {[%clk 0:00:05]}
54... axb3 {[%clk 0:00:14]} 55. axb3 {[%clk 0:00:03]} 55... Kc5 {[%clk
0:00:14.1]} 56. Kd3 {[%clk 0:00:03]} 56... Kb5 {[%clk 0:00:12.5]} 57. Kd4 {[%clk
0:00:02.3]} 57... Ne7 {[%clk 0:00:11.5]} 58. Ke4 {[%clk 0:00:01.8]} 58... Nd5
{[%clk 0:00:10.7]} 59. Kd4 {[%clk 0:00:01.3]} 59... Ne7 {[%clk 0:00:06.3]} 60.
Ke4 {[%clk 0:00:01.6]} 60... Nd5 {[%clk 0:00:04.5]} 61. Kd4 {[%clk 0:00:01.9]}
1/2-1/2

[Event "*** SCC Grand Prix: Titled Tuesday Blitz"]
[Site "Chess.com"]
[Date "2020.09.29"]
[Round "9"]
[White "tlomigtlis"]
[Black "mr_gustavo"]
[Result "0-1"]
[WhiteElo "2519"]
[BlackElo "2391"]
[TimeControl "180+1"]
[EndTime "11:45:23 PDT"]
[Termination "mr_gustavo won by resignation"]

1. d4 {[%clk 0:03:00.9]} 1... d5 {[%clk 0:02:58.8]} 2. c4 {[%clk 0:03:01.1]}
2... c6 {[%clk 0:02:58.7]} 3. Nf3 {[%clk 0:03:01]} 3... Nf6 {[%clk 0:02:58.7]}
4. Nc3 {[%clk 0:03:01.4]} 4... e6 {[%clk 0:02:57.8]} 5. Bg5 {[%clk 0:03:01.5]}
5... Nbd7 {[%clk 0:02:52.6]} 6. e3 {[%clk 0:03:01.3]} 6... Qa5 {[%clk
0:02:52.8]} 7. cxd5 {[%clk 0:03:01.6]} 7... Nxd5 {[%clk 0:02:52]} 8. Qd2 {[%clk
0:03:01.9]} 8... Bb4 {[%clk 0:02:50.8]} 9. Rc1 {[%clk 0:02:58.3]} 9... Nxc3
{[%clk 0:02:50.8]} 10. bxc3 {[%clk 0:02:59.2]} 10... Ba3 {[%clk 0:02:51.3]} 11.
Rb1 {[%clk 0:02:58.9]} 11... b6 {[%clk 0:02:51.3]} 12. Bd3 {[%clk 0:02:57.7]}
12... Ba6 {[%clk 0:02:49.1]} 13. O-O {[%clk 0:02:57]} 13... Bxd3 {[%clk
0:02:49.1]} 14. Qxd3 {[%clk 0:02:57.9]} 14... O-O {[%clk 0:02:49.4]} 15. c4
{[%clk 0:02:58]} 15... Rfe8 {[%clk 0:02:32.6]} 16. Bh4 {[%clk 0:02:57.7]} 16...
Bf8 {[%clk 0:02:31.3]} 17. Rfd1 {[%clk 0:02:55.2]} 17... Rac8 {[%clk 0:02:24.9]}
18. e4 {[%clk 0:02:54.4]} 18... c5 {[%clk 0:02:24.9]} 19. d5 {[%clk 0:02:50.8]}
19... exd5 {[%clk 0:02:25.3]} 20. Qxd5 {[%clk 0:02:50.4]} 20... Nb8 {[%clk
0:02:14]} 21. Ng5 {[%clk 0:02:38.7]} 21... Rc7 {[%clk 0:01:57.6]} 22. Bg3 {[%clk
0:02:33]} 22... Rd7 {[%clk 0:01:56.4]} 23. Qf5 {[%clk 0:02:30.7]} 23... g6
{[%clk 0:01:55.4]} 24. Qh3 {[%clk 0:02:29.3]} 24... Rxd1+ {[%clk 0:01:51.3]} 25.
Rxd1 {[%clk 0:02:30.2]} 25... h6 {[%clk 0:01:50.7]} 26. Nxf7 {[%clk 0:01:56]}
26... Kxf7 {[%clk 0:01:47]} 27. Bxb8 {[%clk 0:01:55.9]} 27... Rxb8 {[%clk
0:01:44.1]} 28. Qd7+ {[%clk 0:01:47.8]} 28... Be7 {[%clk 0:01:40.6]} 29. Qd5+
{[%clk 0:01:46]} 29... Kf8 {[%clk 0:01:36.6]} 30. Qe5 {[%clk 0:01:44.4]} 30...
Rd8 {[%clk 0:00:58.7]} 31. Qh8+ {[%clk 0:01:42.6]} 31... Kf7 {[%clk 0:00:58.5]}
32. Qh7+ {[%clk 0:01:43.5]} 32... Kf6 {[%clk 0:00:51.7]} 33. e5+ {[%clk
0:01:42.8]} 33... Ke6 {[%clk 0:00:50.1]} 34. Qxg6+ {[%clk 0:01:42.7]} 34... Kxe5
{[%clk 0:00:50.4]} 35. f4+ {[%clk 0:01:38.1]} 35... Kxf4 {[%clk 0:00:47.6]} 36.
Qf7+ {[%clk 0:01:19.9]} 36... Kg4 {[%clk 0:00:15.4]} 37. h3+ {[%clk 0:01:13.8]}
37... Kg5 {[%clk 0:00:14]} 38. Qxe7+ {[%clk 0:01:13.9]} 38... Kg6 {[%clk
0:00:14.2]} 39. Qxd8 {[%clk 0:01:14.8]} 39... Qc3 {[%clk 0:00:13]} 40. Rd6+
{[%clk 0:01:13.6]} 40... Kf5 {[%clk 0:00:13.5]} 41. Qf8+ {[%clk 0:01:13.6]}
41... Ke4 {[%clk 0:00:11.8]} 42. Qe7+ {[%clk 0:01:11]} 42... Kf5 {[%clk
0:00:10.4]} 43. Rf6+ {[%clk 0:01:11.9]} 43... Qxf6 {[%clk 0:00:10.1]} 44. Qd7+
{[%clk 0:01:12.2]} 44... Qe6 {[%clk 0:00:09.8]} 45. Qd3+ {[%clk 0:01:11.8]}
45... Qe4 {[%clk 0:00:09.2]} 46. Qd7+ {[%clk 0:01:09.4]} 46... Ke5 {[%clk
0:00:07.5]} 47. Qxa7 {[%clk 0:01:08.8]} 47... Qxc4 {[%clk 0:00:07.5]} 48. Qxb6
{[%clk 0:01:07.6]} 48... Qc1+ {[%clk 0:00:07.6]} 49. Kf2 {[%clk 0:01:05.9]}
49... Qf4+ {[%clk 0:00:05.6]} 50. Ke2 {[%clk 0:01:06.1]} 50... Qe4+ {[%clk
0:00:05.7]} 51. Kd2 {[%clk 0:01:06.3]} 51... Qd4+ {[%clk 0:00:06.1]} 52. Kc2
{[%clk 0:01:05.5]} 52... Qf2+ {[%clk 0:00:06.4]} 53. Kb1 {[%clk 0:00:52.1]}
53... Qg1+ {[%clk 0:00:05.3]} 54. Kb2 {[%clk 0:00:51.1]} 54... Qxg2+ {[%clk
0:00:06.2]} 55. Ka1 {[%clk 0:00:43.6]} 55... Qf1+ {[%clk 0:00:05.1]} 56. Qb1
{[%clk 0:00:42.5]} 56... Qxh3 {[%clk 0:00:03.1]} 57. Qe1+ {[%clk 0:00:40.2]}
57... Kd4 {[%clk 0:00:02.9]} 58. Kb2 {[%clk 0:00:39.7]} 58... Qd3 {[%clk
0:00:02.7]} 59. Qh4+ {[%clk 0:00:39]} 59... Qe4 {[%clk 0:00:02.8]} 60. Qxh6
{[%clk 0:00:36.1]} 60... Qe2+ {[%clk 0:00:03.1]} 61. Kb3 {[%clk 0:00:22.2]}
61... Qb5+ {[%clk 0:00:03.1]} 62. Kc2 {[%clk 0:00:21]} 62... Qc4+ {[%clk
0:00:03.3]} 63. Kb2 {[%clk 0:00:19.8]} 63... Qc3+ {[%clk 0:00:03.7]} 64. Kb1
{[%clk 0:00:20.1]} 64... Qe1+ {[%clk 0:00:03.5]} 65. Qc1 {[%clk 0:00:17.6]}
65... Qb4+ {[%clk 0:00:02.8]} 66. Kc2 {[%clk 0:00:17.3]} 66... Qa4+ {[%clk
0:00:02.4]} 67. Kb2 {[%clk 0:00:17.7]} 67... Qb4+ {[%clk 0:00:02.9]} 68. Ka1
{[%clk 0:00:17.3]} 68... Qc3+ {[%clk 0:00:02.7]} 69. Kb1 {[%clk 0:00:17.6]}
69... Qxc1+ {[%clk 0:00:02.7]} 70. Kxc1 {[%clk 0:00:18.5]} 70... Kc3 {[%clk
0:00:03.6]} 71. Kb1 {[%clk 0:00:18.8]} 71... Kd2 {[%clk 0:00:03.4]} 72. Kb2
{[%clk 0:00:19]} 72... c4 {[%clk 0:00:04.3]} 73. a4 {[%clk 0:00:19.2]} 73... c3+
{[%clk 0:00:05.2]} 74. Ka3 {[%clk 0:00:20]} 74... c2 {[%clk 0:00:06.1]} 75. Kb4
{[%clk 0:00:20.7]} 75... c1=Q {[%clk 0:00:06.6]} 76. a5 {[%clk 0:00:21.6]} 76...
Qc8 {[%clk 0:00:07.3]} 77. Kb5 {[%clk 0:00:22.5]} 77... Qa8 {[%clk 0:00:08.2]}
78. Kb6 {[%clk 0:00:22.8]} 78... Kd3 {[%clk 0:00:09.1]} 79. a6 {[%clk
0:00:23.7]} 79... Kd4 {[%clk 0:00:10]} 80. a7 {[%clk 0:00:24.6]} 80... Kd5
{[%clk 0:00:10.8]} 0-1

[Event "*** SCC Grand Prix: Titled Tuesday Blitz"]
[Site "Chess.com"]
[Date "2020.09.29"]
[Round "9"]
[White "pastouche06"]
[Black "floplover"]
[Result "1/2-1/2"]
[WhiteElo "2464"]
[BlackElo "2307"]
[TimeControl "180+1"]
[EndTime "11:45:27 PDT"]
[Termination "Game drawn by repetition"]

1. d4 {[%clk 0:03:00.8]} 1... d5 {[%clk 0:02:58.7]} 2. c4 {[%clk 0:02:56.5]}
2... e6 {[%clk 0:02:58.2]} 3. Nc3 {[%clk 0:02:55.7]} 3... Bb4 {[%clk 0:02:54.7]}
4. e3 {[%clk 0:02:53.4]} 4... Nf6 {[%clk 0:02:54.3]} 5. a3 {[%clk 0:02:53.9]}
5... Bxc3+ {[%clk 0:02:53.9]} 6. bxc3 {[%clk 0:02:54.8]} 6... O-O {[%clk
0:02:53]} 7. cxd5 {[%clk 0:02:53.8]} 7... exd5 {[%clk 0:02:49]} 8. Bd3 {[%clk
0:02:53.5]} 8... c5 {[%clk 0:02:47.9]} 9. Ne2 {[%clk 0:02:53.4]} 9... Nc6 {[%clk
0:02:45.5]} 10. O-O {[%clk 0:02:53.3]} 10... c4 {[%clk 0:02:42.6]} 11. Bc2
{[%clk 0:02:52.7]} 11... Re8 {[%clk 0:02:34.1]} 12. f3 {[%clk 0:02:48.6]} 12...
Bd7 {[%clk 0:02:28.9]} 13. Ng3 {[%clk 0:02:48.5]} 13... Qa5 {[%clk 0:02:13.2]}
14. Bd2 {[%clk 0:02:43.3]} 14... Rad8 {[%clk 0:02:13.8]} 15. e4 {[%clk
0:02:33.3]} 15... dxe4 {[%clk 0:02:00.3]} 16. fxe4 {[%clk 0:02:34.2]} 16... Bg4
{[%clk 0:01:55.3]} 17. Qc1 {[%clk 0:02:32.6]} 17... h5 {[%clk 0:01:49.5]} 18. h3
{[%clk 0:02:10]} 18... h4 {[%clk 0:01:49.2]} 19. Nh1 {[%clk 0:02:10.6]} 19...
Be2 {[%clk 0:01:45.9]} 20. Re1 {[%clk 0:02:10.6]} 20... Bd3 {[%clk 0:01:36.9]}
21. Nf2 {[%clk 0:02:05.9]} 21... Bxc2 {[%clk 0:01:26.8]} 22. Qxc2 {[%clk
0:02:06.8]} 22... b5 {[%clk 0:01:11.3]} 23. Bg5 {[%clk 0:02:02.7]} 23... Nxd4
{[%clk 0:00:53.6]} 24. cxd4 {[%clk 0:01:56.5]} 24... Rxd4 {[%clk 0:00:54.5]} 25.
Bxf6 {[%clk 0:01:56.3]} 25... gxf6 {[%clk 0:00:54.6]} 26. Rad1 {[%clk
0:01:43.9]} 26... Rxd1 {[%clk 0:00:51.5]} 27. Rxd1 {[%clk 0:01:44.8]} 27... Qxa3
{[%clk 0:00:52]} 28. Ng4 {[%clk 0:01:44.8]} 28... Kg7 {[%clk 0:00:48.9]} 29. Qd2
{[%clk 0:01:37.2]} 29... Qc5+ {[%clk 0:00:44.8]} 30. Kh1 {[%clk 0:01:37.3]}
30... Qg5 {[%clk 0:00:45.7]} 31. Qd4 {[%clk 0:01:26.6]} 31... a6 {[%clk
0:00:38.6]} 32. Rf1 {[%clk 0:01:25.7]} 32... Re6 {[%clk 0:00:38.6]} 33. Rf5
{[%clk 0:01:22]} 33... Qg6 {[%clk 0:00:22.7]} 34. Rf4 {[%clk 0:01:14]} 34... Qg5
{[%clk 0:00:20.9]} 35. Rf5 {[%clk 0:01:05.5]} 35... Qg6 {[%clk 0:00:21]} 36. Ne3
{[%clk 0:01:06.3]} 36... Rc6 {[%clk 0:00:19]} 37. Rf3 {[%clk 0:01:04.6]} 37...
c3 {[%clk 0:00:18.4]} 38. Nf5+ {[%clk 0:01:04.8]} 38... Kh7 {[%clk 0:00:17.7]}
39. Rxc3 {[%clk 0:01:02.5]} 39... Rxc3 {[%clk 0:00:15.9]} 40. Qxc3 {[%clk
0:01:03.4]} 40... Qg5 {[%clk 0:00:15.9]} 41. Qc7 {[%clk 0:00:56.4]} 41... Kg6
{[%clk 0:00:15.1]} 42. Qc8 {[%clk 0:00:53.1]} 42... Kh7 {[%clk 0:00:13]} 43. Qc7
{[%clk 0:00:44.3]} 43... Kg6 {[%clk 0:00:12.4]} 44. Qc3 {[%clk 0:00:40.6]} 44...
Qf4 {[%clk 0:00:11.5]} 45. Kg1 {[%clk 0:00:37.7]} 45... b4 {[%clk 0:00:09.4]}
46. Qxb4 {[%clk 0:00:32.7]} 46... Qc1+ {[%clk 0:00:09.5]} 47. Kf2 {[%clk
0:00:33.2]} 47... Qc2+ {[%clk 0:00:10.1]} 48. Kf3 {[%clk 0:00:32.8]} 48... Qd1+
{[%clk 0:00:09.6]} 49. Ke3 {[%clk 0:00:30.5]} 49... Qg1+ {[%clk 0:00:09.8]} 50.
Kd3 {[%clk 0:00:24.2]} 50... Qf1+ {[%clk 0:00:09.8]} 51. Kd4 {[%clk 0:00:24]}
51... Qxg2 {[%clk 0:00:10.7]} 52. Qf8 {[%clk 0:00:23.6]} 52... Qd2+ {[%clk
0:00:10.4]} 53. Kc5 {[%clk 0:00:23.5]} 53... Qc2+ {[%clk 0:00:11]} 54. Kd5
{[%clk 0:00:23.9]} 54... Qb3+ {[%clk 0:00:11.1]} 55. Kc6 {[%clk 0:00:21.3]}
55... Qb5+ {[%clk 0:00:10.4]} 56. Kc7 {[%clk 0:00:20.9]} 56... Qa5+ {[%clk
0:00:10.4]} 57. Kb7 {[%clk 0:00:20.6]} 57... Qb5+ {[%clk 0:00:10.9]} 58. Ka7
{[%clk 0:00:21.2]} 58... Qd7+ {[%clk 0:00:10.9]} 59. Kxa6 {[%clk 0:00:21.5]}
59... Qc6+ {[%clk 0:00:11.6]} 60. Ka5 {[%clk 0:00:20.6]} 60... Qc7+ {[%clk
0:00:12.5]} 61. Kb4 {[%clk 0:00:19.3]} 61... Qb6+ {[%clk 0:00:12.4]} 62. Kc4
{[%clk 0:00:19.1]} 62... Qa6+ {[%clk 0:00:12.9]} 63. Kd4 {[%clk 0:00:18.7]}
63... Qa1+ {[%clk 0:00:12.8]} 64. Ke3 {[%clk 0:00:18.7]} 64... Qe1+ {[%clk
0:00:12.7]} 65. Kf4 {[%clk 0:00:19.1]} 65... Qf1+ {[%clk 0:00:12.1]} 66. Kg4
{[%clk 0:00:19.3]} 66... Qe2+ {[%clk 0:00:11.7]} 67. Kf4 {[%clk 0:00:17.2]}
67... Qf1+ {[%clk 0:00:12.1]} 68. Ke3 {[%clk 0:00:17.3]} 68... Qe1+ {[%clk
0:00:12.3]} 69. Kd4 {[%clk 0:00:17.8]} 69... Qd2+ {[%clk 0:00:12.7]} 70. Kc4
{[%clk 0:00:17.9]} 70... Qc2+ {[%clk 0:00:13]} 71. Kd5 {[%clk 0:00:18.2]} 71...
Qa2+ {[%clk 0:00:11.5]} 72. Kc6 {[%clk 0:00:17]} 72... Qa6+ {[%clk 0:00:11.4]}
73. Kd7 {[%clk 0:00:16.8]} 73... Qb7+ {[%clk 0:00:11.7]} 74. Ke8 {[%clk
0:00:13.9]} 74... Qc8+ {[%clk 0:00:11.1]} 75. Ke7 {[%clk 0:00:14.4]} 75... Qc7+
{[%clk 0:00:10.2]} 76. Ke8 {[%clk 0:00:14.3]} 76... Qc8+ {[%clk 0:00:10.6]} 77.
Ke7 {[%clk 0:00:14.8]} 77... Qc7+ {[%clk 0:00:11.2]} 78. Ke8 {[%clk 0:00:15.3]}
78... Qc8+ {[%clk 0:00:11.4]} 1/2-1/2